[Event "Late Titled Tuesday Blitz February 8 2022"]
[White "Guz, Ari"]
[Black "Bambino Filho, Antonio Carlos"]
[WhiteFideId "2825759"]
[BlackFideId "2113163"]
[WhiteElo "1913"]
[BlackElo "2453"]
[Result "1-0"]
[Round "04"]
[TimeControl "180+1"]
[Date "2022.02.09"]
[WhiteClock "0:00:15"]
[BlackClock "0:00:14"]

1. b3 {[%clk 0:03:00]}  d5 {[%clk 0:02:59]} 2. Bb2 {[%clk 0:03:00]}  Nf6 {[%clk 0:03:00]} 3. Nf3 {[%clk 0:03:00]}  g6 {[%clk 0:03:00]} 4. e3 {[%clk 0:02:57]}  Bg7 {[%clk 0:03:00]} 5. c4 {[%clk 0:02:57]}  O-O {[%clk 0:03:00]} 6. Be2 {[%clk 0:02:58]}  c5 {[%clk 0:03:00]} 7. O-O {[%clk 0:02:56]}  Nc6 {[%clk 0:02:53]} 8. cxd5 {[%clk 0:02:51]}  Qxd5 {[%clk 0:02:54]} 9. Nc3 {[%clk 0:02:51]}  Qd7 {[%clk 0:02:54]} 10. Bb5 {[%clk 0:02:30]}  Rd8 {[%clk 0:02:46]} 11. Ne5 {[%clk 0:02:24]}  Qc7 {[%clk 0:02:35]} 12. Nxc6 {[%clk 0:02:20]}  bxc6 {[%clk 0:02:35]} 13. Bc4 {[%clk 0:02:20]}  Bf5 {[%clk 0:02:31]} 14. Qe2 {[%clk 0:02:16]}  Nd5 {[%clk 0:02:25]} 15. Rac1 {[%clk 0:01:56]}  Nb4 {[%clk 0:02:25]} 16. e4 {[%clk 0:01:57]}  Be6 {[%clk 0:02:14]} 17. Bxe6 {[%clk 0:01:38]}  fxe6 {[%clk 0:02:15]} 18. Na4 {[%clk 0:01:16]}  Nd3 {[%clk 0:02:14]} 19. Bxg7 {[%clk 0:01:15]}  Nxc1 {[%clk 0:02:10]} 20. Rxc1 {[%clk 0:01:15]}  Kxg7 {[%clk 0:02:10]} 21. Nxc5 {[%clk 0:01:15]}  Qe5 {[%clk 0:02:05]} 22. Qe3 {[%clk 0:00:44]}  Kf7 {[%clk 0:01:50]} 23. h4 {[%clk 0:00:34]}  Rd6 {[%clk 0:01:34]} 24. Rd1 {[%clk 0:00:22]}  Qh5 {[%clk 0:01:14]} 25. f3 {[%clk 0:00:19]}  Kg8 {[%clk 0:01:00]} 26. d4 {[%clk 0:00:19]}  Qxh4 {[%clk 0:00:50]} 27. e5 {[%clk 0:00:18]}  Rd5 {[%clk 0:00:43]} 28. Nxe6 {[%clk 0:00:19]}  Rc8 {[%clk 0:00:26]} 29. Nf4 {[%clk 0:00:19]}  Rdd8 {[%clk 0:00:24]} 30. Qe4 {[%clk 0:00:19]}  g5 {[%clk 0:00:21]} 31. Ne6 {[%clk 0:00:17]}  Qxe4 {[%clk 0:00:21]} 32. fxe4 {[%clk 0:00:18]}  Rd7 {[%clk 0:00:20]} 33. Nxg5 {[%clk 0:00:19]}  c5 {[%clk 0:00:18]} 34. d5 {[%clk 0:00:18]}  c4 {[%clk 0:00:18]} 35. Rc1 {[%clk 0:00:18]}  c3 {[%clk 0:00:18]} 36. Nf3 {[%clk 0:00:18]}  a5 {[%clk 0:00:16]} 37. Kf2 {[%clk 0:00:18]}  a4 {[%clk 0:00:17]} 38. Ke3 {[%clk 0:00:18]}  axb3 {[%clk 0:00:17]} 39. axb3 {[%clk 0:00:19]}  Rb7 {[%clk 0:00:17]} 40. Nd4 {[%clk 0:00:19]}  Ra7 {[%clk 0:00:17]} 41. Kd3 {[%clk 0:00:20]}  Ra2 {[%clk 0:00:16]} 42. Rxc3 {[%clk 0:00:19]}  Rxc3+ {[%clk 0:00:17]} 43. Kxc3 {[%clk 0:00:20]}  Rxg2 {[%clk 0:00:17]} 44. d6 {[%clk 0:00:21]}  Kf7 {[%clk 0:00:16]} 45. d7 {[%clk 0:00:21]}  Rg8 {[%clk 0:00:14]} 46. Nc6 {[%clk 0:00:20]}  h5 {[%clk 0:00:15]} 47. d8=Q {[%clk 0:00:20]}  Rxd8 {[%clk 0:00:15]} 48. Nxd8+ {[%clk 0:00:21]}  Kg6 {[%clk 0:00:15]} 49. Ne6 {[%clk 0:00:21]}  h4 {[%clk 0:00:15]} 50. Nf4+ {[%clk 0:00:20]}  Kg5 {[%clk 0:00:15]} 51. Nh3+ {[%clk 0:00:20]}  Kg4 {[%clk 0:00:16]} 52. Ng1 {[%clk 0:00:21]}  Kg3 {[%clk 0:00:16]} 53. b4 {[%clk 0:00:21]}  Kg2 {[%clk 0:00:17]} 54. Ne2 {[%clk 0:00:22]}  Kf2 {[%clk 0:00:17]} 55. Nf4 {[%clk 0:00:22]}  Kg3 {[%clk 0:00:16]} 56. Nh5+ {[%clk 0:00:22]}  Kg4 {[%clk 0:00:17]} 57. Nf6+ {[%clk 0:00:23]}  Kg3 {[%clk 0:00:16]} 58. Nh5+ {[%clk 0:00:23]}  Kg4 {[%clk 0:00:16]} 59. b5 {[%clk 0:00:19]}  h3 {[%clk 0:00:15]} 60. Nf6+ {[%clk 0:00:18]}  Kg5 {[%clk 0:00:15]} 61. b6 {[%clk 0:00:15]}  h2 {[%clk 0:00:15]} 62. b7 {[%clk 0:00:16]}  h1=Q {[%clk 0:00:16]} 63. b8=Q {[%clk 0:00:17]}  Qc1+ {[%clk 0:00:15]} 64. Kd4 {[%clk 0:00:17]}  Qd2+ {[%clk 0:00:15]} 65. Kc5 {[%clk 0:00:17]}  Qc3+ {[%clk 0:00:15]} 66. Kd5 {[%clk 0:00:17]}  Qd3+ {[%clk 0:00:16]} 67. Ke6 {[%clk 0:00:17]}  exf6 {[%clk 0:00:14]} 68. Qg8+ {[%clk 0:00:16]}  Kf4 {[%clk 0:00:15]} 69. exf6 {[%clk 0:00:15]}  Qxe4+ {[%clk 0:00:15]} 70. Kf7 {[%clk 0:00:15]}  Ke5 {[%clk 0:00:14]} 71. Qe8+ {[%clk 0:00:15]} 1-0


[Site "https://www.chess.com"]

[Event "Late Titled Tuesday Blitz February 8 2022"]
[White "Hoffmann, Asa"]
[Black "Vusatiuk, Vladimir"]
[WhiteFideId "2001470"]
[BlackFideId "14118610"]
[WhiteElo "2117"]
[BlackElo "2157"]
[Result "0-1"]
[Round "04"]
[TimeControl "180+1"]
[Date "2022.02.09"]
[WhiteClock "0:00:52"]
[BlackClock "0:00:11"]

1. d4 {[%clk 0:02:57]}  f5 {[%clk 0:02:56]} 2. Nc3 {[%clk 0:02:56]}  Nf6 {[%clk 0:02:56]} 3. Bg5 {[%clk 0:02:55]}  d5 {[%clk 0:02:55]} 4. f3 {[%clk 0:02:55]}  c5 {[%clk 0:02:11]} 5. e4 {[%clk 0:02:55]}  cxd4 {[%clk 0:02:08]} 6. Qxd4 {[%clk 0:02:54]}  Nc6 {[%clk 0:02:08]} 7. Bb5 {[%clk 0:02:53]}  dxe4 {[%clk 0:01:59]} 8. Qxd8+ {[%clk 0:02:52]}  Kxd8 {[%clk 0:02:00]} 9. Bxc6 {[%clk 0:02:48]}  bxc6 {[%clk 0:01:57]} 10. O-O-O+ {[%clk 0:02:48]}  Kc7 {[%clk 0:01:56]} 11. fxe4 {[%clk 0:02:42]}  Nxe4 {[%clk 0:01:57]} 12. Bf4+ {[%clk 0:02:41]}  Nd6 {[%clk 0:01:55]} 13. Nf3 {[%clk 0:02:39]}  h6 {[%clk 0:01:45]} 14. h4 {[%clk 0:02:39]}  g6 {[%clk 0:01:45]} 15. Ne5 {[%clk 0:02:37]}  Rg8 {[%clk 0:01:37]} 16. Rhe1 {[%clk 0:02:34]}  g5 {[%clk 0:01:36]} 17. hxg5 {[%clk 0:02:26]}  hxg5 {[%clk 0:01:37]} 18. Bh2 {[%clk 0:02:18]}  f4 {[%clk 0:01:27]} 19. Bg1 {[%clk 0:02:13]}  Bf5 {[%clk 0:01:22]} 20. Bc5 {[%clk 0:02:06]}  Bg7 {[%clk 0:01:04]} 21. Nf3 {[%clk 0:02:02]}  Bf6 {[%clk 0:01:00]} 22. Nd4 {[%clk 0:01:58]}  Bg4 {[%clk 0:00:56]} 23. Ne6+ {[%clk 0:01:57]}  Kb7 {[%clk 0:00:55]} 24. Rd2 {[%clk 0:01:44]}  Rge8 {[%clk 0:00:18]} 25. Ne4 {[%clk 0:01:32]}  Bxe6 {[%clk 0:00:16]} 26. Nxf6 {[%clk 0:01:30]}  exf6 {[%clk 0:00:17]} 27. Rxd6 {[%clk 0:01:28]}  Bd5 {[%clk 0:00:15]} 28. Rg1 {[%clk 0:01:22]}  Re2 {[%clk 0:00:13]} 29. Rxf6 {[%clk 0:01:13]}  Rxg2 {[%clk 0:00:12]} 30. Rf1 {[%clk 0:01:12]}  Rc8 {[%clk 0:00:10]} 31. b3 {[%clk 0:01:08]}  f3 {[%clk 0:00:09]} 32. c4 {[%clk 0:01:04]}  Be4 {[%clk 0:00:10]} 33. Re6 {[%clk 0:01:02]}  Rc2+ {[%clk 0:00:09]} 34. Kd1 {[%clk 0:01:02]}  Rxa2 {[%clk 0:00:10]} 35. Rxe4 {[%clk 0:01:00]}  Ra1+ {[%clk 0:00:10]} 36. Kd2 {[%clk 0:01:00]}  Rxf1 {[%clk 0:00:11]} 37. Rg4 {[%clk 0:00:58]}  f2 {[%clk 0:00:10]} 38. Ke2 {[%clk 0:00:57]}  Rg1 {[%clk 0:00:07]} 39. Rxg1 {[%clk 0:00:53]}  fxg1=Q {[%clk 0:00:08]} 40. Bxg1 {[%clk 0:00:53]}  a5 {[%clk 0:00:08]} 41. Be3 {[%clk 0:00:52]}  Re8 {[%clk 0:00:09]} 42. Kf3 {[%clk 0:00:52]}  Rxe3+ {[%clk 0:00:10]} 43. Kxe3 {[%clk 0:00:52]}  Kb6 {[%clk 0:00:11]} 0-1


[Site "https://www.chess.com"]

[Event "Late Titled Tuesday Blitz February 8 2022"]
[White "Iskusnyh, Sergei"]
[Black "Aaditya Dhingra"]
[WhiteFideId "4120027"]
[BlackFideId "25678191"]
[WhiteElo "2492"]
[BlackElo "1789"]
[Result "1-0"]
[Round "04"]
[TimeControl "180+1"]
[Date "2022.02.09"]
[WhiteClock "0:00:50"]
[BlackClock "0:00:02"]

1. d4 {[%clk 0:03:00]}  d5 {[%clk 0:02:59]} 2. c4 {[%clk 0:03:00]}  c6 {[%clk 0:02:58]} 3. Nf3 {[%clk 0:03:00]}  e6 {[%clk 0:02:57]} 4. e3 {[%clk 0:03:00]}  f5 {[%clk 0:02:56]} 5. Bd3 {[%clk 0:02:52]}  Nf6 {[%clk 0:02:54]} 6. O-O {[%clk 0:02:52]}  Bd6 {[%clk 0:02:53]} 7. b3 {[%clk 0:02:52]}  O-O {[%clk 0:02:52]} 8. Ba3 {[%clk 0:02:51]}  Bxa3 {[%clk 0:02:48]} 9. Nxa3 {[%clk 0:02:51]}  Nbd7 {[%clk 0:02:47]} 10. Qc1 {[%clk 0:02:49]}  Ne4 {[%clk 0:02:41]} 11. Qb2 {[%clk 0:02:48]}  Rf6 {[%clk 0:02:32]} 12. b4 {[%clk 0:02:41]}  Rh6 {[%clk 0:02:25]} 13. b5 {[%clk 0:02:35]}  g5 {[%clk 0:02:16]} 14. g3 {[%clk 0:02:25]}  g4 {[%clk 0:02:12]} 15. Bxe4 {[%clk 0:02:22]}  fxe4 {[%clk 0:02:06]} 16. Ne5 {[%clk 0:02:17]}  Nxe5 {[%clk 0:02:01]} 17. dxe5 {[%clk 0:02:17]}  Rh3 {[%clk 0:01:58]} 18. Kg2 {[%clk 0:02:08]}  Qg5 {[%clk 0:01:49]} 19. Rh1 {[%clk 0:02:04]}  Bd7 {[%clk 0:01:42]} 20. bxc6 {[%clk 0:02:02]}  Bxc6 {[%clk 0:01:39]} 21. cxd5 {[%clk 0:01:58]}  exd5 {[%clk 0:01:19]} 22. Nc2 {[%clk 0:01:55]}  Re8 {[%clk 0:01:16]} 23. Nd4 {[%clk 0:01:54]}  Qxe5 {[%clk 0:01:15]} 24. Rac1 {[%clk 0:01:51]}  Qf6 {[%clk 0:01:09]} 25. Qe2 {[%clk 0:01:48]}  Qg6 {[%clk 0:01:05]} 26. Rc2 {[%clk 0:01:40]}  Rf8 {[%clk 0:01:00]} 27. Qd1 {[%clk 0:01:36]}  Ba4 {[%clk 0:00:54]} 28. Nb3 {[%clk 0:01:33]}  Qf5 {[%clk 0:00:49]} 29. Qe2 {[%clk 0:01:25]}  Qf3+ {[%clk 0:00:46]} 30. Qxf3 {[%clk 0:01:25]}  exf3+ {[%clk 0:00:45]} 31. Kf1 {[%clk 0:01:24]}  Bxb3 {[%clk 0:00:35]} 32. axb3 {[%clk 0:01:23]}  Rh6 {[%clk 0:00:34]} 33. Ke1 {[%clk 0:01:20]}  Rc6 {[%clk 0:00:32]} 34. Kd2 {[%clk 0:01:17]}  Rfc8 {[%clk 0:00:31]} 35. Ra2 {[%clk 0:01:08]}  a6 {[%clk 0:00:29]} 36. h3 {[%clk 0:01:08]}  gxh3 {[%clk 0:00:25]} 37. Rxh3 {[%clk 0:01:07]}  Kg7 {[%clk 0:00:24]} 38. g4 {[%clk 0:01:06]}  Rc3 {[%clk 0:00:21]} 39. Rb2 {[%clk 0:01:02]}  d4 {[%clk 0:00:15]} 40. Rxf3 {[%clk 0:01:01]}  dxe3+ {[%clk 0:00:14]} 41. fxe3 {[%clk 0:01:00]}  R3c6 {[%clk 0:00:13]} 42. Rf4 {[%clk 0:00:57]}  Rd8+ {[%clk 0:00:12]} 43. Ke2 {[%clk 0:00:57]}  Rc3 {[%clk 0:00:11]} 44. b4 {[%clk 0:00:55]}  Rdd3 {[%clk 0:00:10]} 45. Re4 {[%clk 0:00:54]}  Rb3 {[%clk 0:00:08]} 46. Rxb3 {[%clk 0:00:53]}  Rxb3 {[%clk 0:00:08]} 47. Re7+ {[%clk 0:00:53]}  Kg6 {[%clk 0:00:08]} 48. Rxb7 {[%clk 0:00:54]}  Kg5 {[%clk 0:00:06]} 49. Kf3 {[%clk 0:00:54]}  h5 {[%clk 0:00:06]} 50. gxh5 {[%clk 0:00:53]}  Kxh5 {[%clk 0:00:06]} 51. Rb6 {[%clk 0:00:51]}  Kg5 {[%clk 0:00:05]} 52. Ke4 {[%clk 0:00:51]}  Kh5 {[%clk 0:00:02]} 53. Kf4 {[%clk 0:00:50]} 1-0


[Site "https://www.chess.com"]

[Event "Late Titled Tuesday Blitz February 8 2022"]
[White "Kanyamarala, Trisha"]
[Black "Kalajzic, Ivan"]
[WhiteFideId "45004722"]
[BlackFideId "14506378"]
[WhiteElo "2002"]
[BlackElo "2163"]
[Result "1-0"]
[Round "04"]
[TimeControl "180+1"]
[Date "2022.02.09"]
[WhiteClock "0:00:13"]
[BlackClock "0:00:17"]

1. c4 {[%clk 0:03:00]}  Nc6 {[%clk 0:02:58]} 2. d4 {[%clk 0:03:00]}  e5 {[%clk 0:02:57]} 3. d5 {[%clk 0:02:55]}  Nce7 {[%clk 0:02:57]} 4. Nc3 {[%clk 0:02:54]}  Nf6 {[%clk 0:02:55]} 5. e4 {[%clk 0:02:54]}  Ng6 {[%clk 0:02:52]} 6. g3 {[%clk 0:02:53]}  Bc5 {[%clk 0:02:49]} 7. Bg2 {[%clk 0:02:52]}  d6 {[%clk 0:02:49]} 8. Nge2 {[%clk 0:02:51]}  O-O {[%clk 0:02:48]} 9. O-O {[%clk 0:02:51]}  h6 {[%clk 0:02:46]} 10. Na4 {[%clk 0:02:51]}  Bb6 {[%clk 0:02:39]} 11. b4 {[%clk 0:02:45]}  Bd7 {[%clk 0:02:28]} 12. Nxb6 {[%clk 0:02:32]}  axb6 {[%clk 0:02:25]} 13. a4 {[%clk 0:02:32]}  Nh7 {[%clk 0:02:19]} 14. Be3 {[%clk 0:02:28]}  f5 {[%clk 0:02:18]} 15. f4 {[%clk 0:02:28]}  exf4 {[%clk 0:02:13]} 16. Nxf4 {[%clk 0:02:27]}  Ne5 {[%clk 0:02:11]} 17. Qc2 {[%clk 0:02:12]}  Ng4 {[%clk 0:02:08]} 18. Bd4 {[%clk 0:02:11]}  Ng5 {[%clk 0:01:56]} 19. h3 {[%clk 0:01:49]}  Ne5 {[%clk 0:01:48]} 20. Bxe5 {[%clk 0:01:48]}  dxe5 {[%clk 0:01:47]} 21. Ng6 {[%clk 0:01:48]}  f4 {[%clk 0:01:44]} 22. Nxf8 {[%clk 0:01:40]}  Qxf8 {[%clk 0:01:45]} 23. h4 {[%clk 0:01:24]}  Nh3+ {[%clk 0:01:37]} 24. Bxh3 {[%clk 0:01:13]}  Bxh3 {[%clk 0:01:37]} 25. Rf2 {[%clk 0:01:14]}  g5 {[%clk 0:01:33]} 26. Qc3 {[%clk 0:01:09]}  Qg7 {[%clk 0:01:30]} 27. Kh2 {[%clk 0:01:04]}  Bd7 {[%clk 0:01:27]} 28. gxf4 {[%clk 0:01:04]}  exf4 {[%clk 0:01:15]} 29. e5 {[%clk 0:01:03]}  Rf8 {[%clk 0:00:59]} 30. Raf1 {[%clk 0:00:56]}  Rf5 {[%clk 0:00:50]} 31. Re1 {[%clk 0:00:28]}  g4 {[%clk 0:00:47]} 32. Kg1 {[%clk 0:00:24]}  f3 {[%clk 0:00:37]} 33. Qe3 {[%clk 0:00:21]}  Qf8 {[%clk 0:00:32]} 34. e6 {[%clk 0:00:15]}  g3 {[%clk 0:00:30]} 35. exd7 {[%clk 0:00:13]}  gxf2+ {[%clk 0:00:26]} 36. Kxf2 {[%clk 0:00:14]}  Qg7 {[%clk 0:00:22]} 37. Rg1 {[%clk 0:00:11]}  Qxg1+ {[%clk 0:00:16]} 38. Kxg1 {[%clk 0:00:12]}  f2+ {[%clk 0:00:17]} 39. Kf1 {[%clk 0:00:13]} 1-0


[Site "https://www.chess.com"]

[Event "Late Titled Tuesday Blitz February 8 2022"]
[White "Kashefi, Amir Hosein"]
[Black "Beulen, Marcel"]
[WhiteFideId "12557935"]
[BlackFideId "1001450"]
[WhiteElo "2098"]
[BlackElo "2349"]
[Result "0-1"]
[Round "04"]
[TimeControl "180+1"]
[Date "2022.02.09"]
[WhiteClock "0:00:10"]
[BlackClock "0:00:36"]

1. e4 {[%clk 0:02:53]}  d5 {[%clk 0:02:59]} 2. exd5 {[%clk 0:02:52]}  Qxd5 {[%clk 0:03:00]} 3. Nc3 {[%clk 0:02:52]}  Qa5 {[%clk 0:03:00]} 4. b4 {[%clk 0:02:44]}  Qxb4 {[%clk 0:02:59]} 5. Rb1 {[%clk 0:02:44]}  Qd6 {[%clk 0:02:59]} 6. d4 {[%clk 0:02:38]}  Nf6 {[%clk 0:02:58]} 7. Nf3 {[%clk 0:02:35]}  a6 {[%clk 0:02:58]} 8. g3 {[%clk 0:02:30]}  b5 {[%clk 0:02:57]} 9. Bg2 {[%clk 0:02:31]}  Bb7 {[%clk 0:02:57]} 10. Bf4 {[%clk 0:02:29]}  Qd8 {[%clk 0:02:55]} 11. a4 {[%clk 0:02:22]}  Nd5 {[%clk 0:02:26]} 12. Nxd5 {[%clk 0:02:12]}  Bxd5 {[%clk 0:02:26]} 13. axb5 {[%clk 0:02:09]}  axb5 {[%clk 0:02:26]} 14. Rxb5 {[%clk 0:02:05]}  e6 {[%clk 0:02:26]} 15. Rb1 {[%clk 0:01:44]}  Bd6 {[%clk 0:02:19]} 16. Bxd6 {[%clk 0:01:38]}  cxd6 {[%clk 0:02:18]} 17. O-O {[%clk 0:01:39]}  O-O {[%clk 0:02:18]} 18. Qd3 {[%clk 0:01:32]}  Qc7 {[%clk 0:02:14]} 19. Ng5 {[%clk 0:01:29]}  g6 {[%clk 0:02:12]} 20. Bxd5 {[%clk 0:01:29]}  exd5 {[%clk 0:02:13]} 21. Qf3 {[%clk 0:01:19]}  Qxc2 {[%clk 0:02:00]} 22. Qxd5 {[%clk 0:01:17]}  Qc6 {[%clk 0:01:41]} 23. Qxc6 {[%clk 0:00:51]}  Nxc6 {[%clk 0:01:40]} 24. d5 {[%clk 0:00:52]}  Ne7 {[%clk 0:01:36]} 25. Rfd1 {[%clk 0:00:50]}  Ra5 {[%clk 0:01:34]} 26. Ne4 {[%clk 0:00:50]}  Kg7 {[%clk 0:01:34]} 27. Rb7 {[%clk 0:00:42]}  Rxd5 {[%clk 0:01:32]} 28. Rxd5 {[%clk 0:00:33]}  Nxd5 {[%clk 0:01:32]} 29. Nxd6 {[%clk 0:00:34]}  h5 {[%clk 0:01:29]} 30. h4 {[%clk 0:00:34]}  Nf6 {[%clk 0:01:19]} 31. Kg2 {[%clk 0:00:33]}  Ne8 {[%clk 0:01:13]} 32. Ne4 {[%clk 0:00:33]}  Nf6 {[%clk 0:01:12]} 33. Ng5 {[%clk 0:00:33]}  Kg8 {[%clk 0:01:09]} 34. Ra7 {[%clk 0:00:33]}  Nh7 {[%clk 0:01:09]} 35. Ne4 {[%clk 0:00:32]}  Kg7 {[%clk 0:01:09]} 36. Nc5 {[%clk 0:00:32]}  Re8 {[%clk 0:01:05]} 37. Nd3 {[%clk 0:00:22]}  Nf8 {[%clk 0:01:00]} 38. Nf4 {[%clk 0:00:21]}  Rd8 {[%clk 0:00:53]} 39. Rb7 {[%clk 0:00:19]}  Rd7 {[%clk 0:00:53]} 40. Rb8 {[%clk 0:00:19]}  Re7 {[%clk 0:00:48]} 41. Ra8 {[%clk 0:00:19]}  Ne6 {[%clk 0:00:48]} 42. Nd5 {[%clk 0:00:18]}  Rd7 {[%clk 0:00:48]} 43. Ne3 {[%clk 0:00:18]}  Nd4 {[%clk 0:00:46]} 44. Nc4 {[%clk 0:00:18]}  Nf5 {[%clk 0:00:46]} 45. Ne5 {[%clk 0:00:16]}  Re7 {[%clk 0:00:46]} 46. Nf3 {[%clk 0:00:13]}  Rd7 {[%clk 0:00:40]} 47. Ra2 {[%clk 0:00:12]}  Re7 {[%clk 0:00:40]} 48. Ng5 {[%clk 0:00:12]}  Rd7 {[%clk 0:00:39]} 49. Nh3 {[%clk 0:00:12]}  Re7 {[%clk 0:00:38]} 50. Nf4 {[%clk 0:00:13]}  Rd7 {[%clk 0:00:39]} 51. Kh3 {[%clk 0:00:13]}  Ne7 {[%clk 0:00:36]} 52. f3 {[%clk 0:00:11]}  Nd5 {[%clk 0:00:36]} 53. Rd2 {[%clk 0:00:10]}  Nxf4+ {[%clk 0:00:36]} 0-1


[Site "https://www.chess.com"]

[Event "Late Titled Tuesday Blitz February 8 2022"]
[White "Khanin, Semen"]
[Black "Jacobson, Brandon"]
[WhiteFideId "4111990"]
[BlackFideId "30901561"]
[WhiteElo "2442"]
[BlackElo "2362"]
[Result "0-1"]
[Round "04"]
[TimeControl "180+1"]
[Date "2022.02.08"]
[WhiteClock "0:00:33"]
[BlackClock "0:01:30"]

1. e4 {[%clk 0:03:00]}  c5 {[%clk 0:03:00]} 2. Nf3 {[%clk 0:03:00]}  d6 {[%clk 0:03:01]} 3. d4 {[%clk 0:02:58]}  cxd4 {[%clk 0:03:01]} 4. Nxd4 {[%clk 0:02:59]}  Nf6 {[%clk 0:03:02]} 5. Nc3 {[%clk 0:02:59]}  Nc6 {[%clk 0:03:03]} 6. Bg5 {[%clk 0:02:58]}  e6 {[%clk 0:03:04]} 7. Qd2 {[%clk 0:02:58]}  a6 {[%clk 0:03:04]} 8. O-O-O {[%clk 0:02:58]}  Bd7 {[%clk 0:03:05]} 9. f3 {[%clk 0:02:56]}  Nxd4 {[%clk 0:03:05]} 10. Qxd4 {[%clk 0:02:56]}  Bc6 {[%clk 0:03:05]} 11. g4 {[%clk 0:02:54]}  h6 {[%clk 0:03:05]} 12. Be3 {[%clk 0:02:54]}  d5 {[%clk 0:03:05]} 13. e5 {[%clk 0:02:22]}  Nd7 {[%clk 0:03:05]} 14. Qf4 {[%clk 0:02:11]}  Qg5 {[%clk 0:02:57]} 15. Qxg5 {[%clk 0:01:42]}  hxg5 {[%clk 0:02:58]} 16. Bd4 {[%clk 0:01:42]}  Bc5 {[%clk 0:02:42]} 17. Bxc5 {[%clk 0:01:42]}  Nxc5 {[%clk 0:02:43]} 18. Ne2 {[%clk 0:01:42]}  Nd7 {[%clk 0:02:42]} 19. Nd4 {[%clk 0:01:43]}  Nxe5 {[%clk 0:02:41]} 20. Re1 {[%clk 0:01:43]}  Ng6 {[%clk 0:02:37]} 21. Bd3 {[%clk 0:01:37]}  Nf4 {[%clk 0:02:34]} 22. Re5 {[%clk 0:01:37]}  f6 {[%clk 0:02:34]} 23. Ree1 {[%clk 0:01:31]}  Kf7 {[%clk 0:02:32]} 24. Ne2 {[%clk 0:01:14]}  Rh3 {[%clk 0:02:14]} 25. Nxf4 {[%clk 0:01:13]}  gxf4 {[%clk 0:02:14]} 26. g5 {[%clk 0:01:08]}  fxg5 {[%clk 0:02:00]} 27. Re5 {[%clk 0:01:08]}  Kf6 {[%clk 0:01:50]} 28. Rhe1 {[%clk 0:01:05]}  Bd7 {[%clk 0:01:50]} 29. Bf1 {[%clk 0:00:40]}  Rxf3 {[%clk 0:01:44]} 30. Bg2 {[%clk 0:00:41]}  Rf2 {[%clk 0:01:42]} 31. Bh3 {[%clk 0:00:41]}  Rc8 {[%clk 0:01:34]} 32. c3 {[%clk 0:00:40]}  Re8 {[%clk 0:01:32]} 33. R1e2 {[%clk 0:00:32]}  Rxe2 {[%clk 0:01:30]} 34. Rxe2 {[%clk 0:00:33]}  Re7 {[%clk 0:01:30]} 35. Bg4 {[%clk 0:00:33]}  e5 {[%clk 0:01:30]} 0-1


[Site "https://www.chess.com"]

[Event "Late Titled Tuesday Blitz February 8 2022"]
[White "Kim, Sergey"]
[Black "Pranav, V"]
[WhiteFideId "13700570"]
[BlackFideId "25060783"]
[WhiteElo "2615"]
[BlackElo "2349"]
[Result "0-1"]
[Round "04"]
[TimeControl "180+1"]
[Date "2022.02.08"]
[WhiteClock "0:00:02"]
[BlackClock "0:00:11"]

1. d4 {[%clk 0:03:00]}  Nf6 {[%clk 0:02:59]} 2. c4 {[%clk 0:03:01]}  e6 {[%clk 0:02:58]} 3. Nc3 {[%clk 0:03:01]}  Bb4 {[%clk 0:02:58]} 4. Qc2 {[%clk 0:03:01]}  O-O {[%clk 0:02:58]} 5. a3 {[%clk 0:03:01]}  Bxc3+ {[%clk 0:02:58]} 6. Qxc3 {[%clk 0:03:02]}  d6 {[%clk 0:02:59]} 7. Nf3 {[%clk 0:03:02]}  b6 {[%clk 0:02:58]} 8. g3 {[%clk 0:03:03]}  Bb7 {[%clk 0:02:59]} 9. Bg2 {[%clk 0:03:03]}  Nbd7 {[%clk 0:03:00]} 10. O-O {[%clk 0:03:03]}  c5 {[%clk 0:03:01]} 11. dxc5 {[%clk 0:03:03]}  bxc5 {[%clk 0:03:00]} 12. b3 {[%clk 0:03:03]}  Ne4 {[%clk 0:03:00]} 13. Qc2 {[%clk 0:03:02]}  f5 {[%clk 0:03:00]} 14. Ng5 {[%clk 0:02:45]}  Qf6 {[%clk 0:02:35]} 15. Rb1 {[%clk 0:02:42]}  Qg6 {[%clk 0:02:33]} 16. Nh3 {[%clk 0:02:27]}  e5 {[%clk 0:02:31]} 17. f3 {[%clk 0:02:18]}  Nef6 {[%clk 0:02:28]} 18. Rd1 {[%clk 0:02:07]}  Ne8 {[%clk 0:02:05]} 19. b4 {[%clk 0:01:52]}  Bc6 {[%clk 0:01:57]} 20. Be3 {[%clk 0:01:49]}  Rc8 {[%clk 0:01:36]} 21. bxc5 {[%clk 0:01:37]}  Nxc5 {[%clk 0:01:37]} 22. Bxc5 {[%clk 0:01:31]}  dxc5 {[%clk 0:01:38]} 23. Qc3 {[%clk 0:01:26]}  Qe6 {[%clk 0:01:30]} 24. Ng5 {[%clk 0:00:55]}  Qe7 {[%clk 0:01:17]} 25. f4 {[%clk 0:00:50]}  Bxg2 {[%clk 0:01:14]} 26. Kxg2 {[%clk 0:00:50]}  exf4 {[%clk 0:01:13]} 27. gxf4 {[%clk 0:00:49]}  Qxe2+ {[%clk 0:01:12]} 28. Kh1 {[%clk 0:00:49]}  Nf6 {[%clk 0:01:08]} 29. Re1 {[%clk 0:00:33]}  Qh5 {[%clk 0:01:08]} 30. Rg1 {[%clk 0:00:31]}  Rce8 {[%clk 0:00:57]} 31. Qd3 {[%clk 0:00:28]}  Ng4 {[%clk 0:00:53]} 32. Rg2 {[%clk 0:00:25]}  h6 {[%clk 0:00:48]} 33. Qd5+ {[%clk 0:00:22]}  Kh8 {[%clk 0:00:48]} 34. Ne6 {[%clk 0:00:19]}  Rf6 {[%clk 0:00:41]} 35. Nxc5 {[%clk 0:00:09]}  Kh7 {[%clk 0:00:28]} 36. Rbg1 {[%clk 0:00:07]}  Re3 {[%clk 0:00:26]} 37. Nd7 {[%clk 0:00:06]}  Qf7 {[%clk 0:00:11]} 38. Nxf6+ {[%clk 0:00:05]}  Qxf6 {[%clk 0:00:12]} 39. Qc5 {[%clk 0:00:04]}  Rh3 {[%clk 0:00:12]} 40. Qxa7 {[%clk 0:00:02]}  Qc6 {[%clk 0:00:11]} 0-1


[Site "https://www.chess.com"]